Cogmind - Beta 13 X1 @@@ ROGUE MODE // 2023.08.12 @ 17:06:49 Player: f3-rnm Result: Destroyed by WS-GKL(R) with Subdweller Laser Performance ------------- Evolutions (0) 0 Regions Visited (2) 400 Robots Destroyed (11) 55 Value Destroyed (377) 377 Prototype IDs (10) 200 Alien Tech Used (0) 0 Bonus (0) 0 TOTAL SCORE: 1032 Bonus ------- None Cogmind --------- Core Integrity 0/250 Matter 245/300 Energy 250/250 System Corruption 0% Temperature Cool (6) Movement Walking (190) Ox1 Location -10/Subcaves Parts ------- > --- POWER (1) -------- Ion Engine > --- PROPULSION (2) --- Aluminum Leg Aluminum Leg > --- UTILITY (2) ------ Medium Storage Unit Seismic Detector > --- WEAPON (2) ------- Subdweller Laser Grenade Launcher > --- INVENTORY (10) --- Ion Engine Wheel Small Storage Unit Subdweller Optics ECM Suite Light Armor Plating EM Pulse Gun Medium Laser Powered Cannon Peak State ------------ > --- POWER ------------ Ion Engine > --- PROPULSION ------- Aluminum Leg Aluminum Leg > --- UTILITY ---------- Medium Storage Unit Seismic Detector > --- WEAPON ----------- Subdweller Laser Grenade Launcher > --- INVENTORY -------- Ion Engine Wheel Compact Wheel Small Storage Unit ECM Suite Light Armor Plating EM Pulse Gun Medium Laser Powered Cannon [Rating: 10] Favorites ----------- Power Ion Engine Engine Ion Engine Propulsion Aluminum Leg Leg Aluminum Leg Utility Seismic Detector Device Seismic Detector Storage Medium Storage Unit Weapon Subdweller Laser Energy Gun Subdweller Laser Launcher Grenade Launcher Build | -11 -10 -10 ------- Run | Jun Mat Sub Slots Evolved . | . . . Power . | . . . Propulsion . | . . . Utility . | . . . Weapon . | . . . Parts Attached 12 | 6 3 3 Power 2 | 1 . 1 Engine 2 | 1 . 1 Core . | . . . Reactor . | . . . Propulsion 2 | 1 1 . Treads . | . . . Leg 2 | 1 1 . Wheel . | . . . Hover . | . . . Flight . | . . . Utility 3 | 2 1 . Device 1 | 1 . . Storage 2 | 1 1 . Processor . | . . . Hackware . | . . . Protection . | . . . Artifact . | . . . Weapon 5 | 2 1 2 Energy Gun 4 | 2 1 1 Energy Cannon . | . . . Ballistic Gun . | . . . Ballistic Cannon . | . . . Launcher 1 | . . 1 Special Weapon . | . . . Impact Weapon . | . . . Slashing Weapon . | . . . Piercing Weapon . | . . . Special Melee Weapon . | . . . Unidentified Prototypes . | . . . Parts Lost 1 | . . 1 Power 1 | . . 1 Propulsion . | . . . Utility . | . . . Weapon . | . . . Highest Loss Streak 1 | . . 1 To Critical Strikes . | . . . Average Slot Usage (%) 99 | . 96 100 Engine 14 | . 14 14 Leg 27 | . 24 28 Device 14 | . 14 14 Storage 14 | . 14 14 Energy Gun 19 | . 28 17 Launcher 8 | . . 10 Naked Turns . | . . . Heaviest Build 23 | 13 18 23 Greatest Support 20 | 10 20 20 Greatest Overweight (x) 1 | 1 1 1 Average Overweight (x) . | . . . Largest Inventory Capacity 10 | 8 10 10 Average Capacity 9 | 7 9 10 Most Carried 10 | 6 9 10 Average Carried 8 | 4 7 9 Final Capacity 10 | 8 10 10 Final Carried 10 | 5 9 10 Class Distribution -------------------- 100% | Mutant Dominant Class ---------------- Mutant | -10/Materials Mutant | -10/Subcaves Resources | -11 -10 -10 ----------- Run | Jun Mat Sub Matter Collected 455 | 119 55 281 Remotely . | . . . Salvage Created 429 | 50 94 285 Parts 24 | 5 4 15 Haulers Intercepted . | . . . Recyclers Shooed . | . . . Parts Field Recycled . | . . . Retrieved Matter . | . . . Parts Self-Destructed 13 | . . 13 Prevented . | . . . Kills | -11 -10 -10 ------- Run | Jun Mat Sub Combat Hostiles Destroyed 9 | . 2 7 Guns 6 | . 2 4 AOE 3 | . . 3 Classes Destroyed 5 | 1 1 3 Tunneler 2 | 2 . . Grunt 2 | . 2 . Sentry 1 | . . 1 Artisan 1 | . . 1 Subdweller 6 | . . 6 Best Kill Streak 3 | 1 2 3 Combat Bots Only 3 | . 2 3 Max Kills in Single Turn 1 | 1 1 1 Gunslinging . | . . . Exploded 1 | . . 1 Melee . | . . . Uniques/NPCs Destroyed . | . . . Combat | -11 -10 -10 -------- Run | Jun Mat Sub Damage Taken 679 | . 93 586 Core 250 | . 21 229 Absorbed by Shields . | . . . Core Remaining (%) 100 | 100 . . Volleys Fired 56 | 10 13 33 Largest 2 | 2 2 2 Hottest 90 | 90 90 90 Shots Fired 112 | 20 26 66 Gun 93 | 20 26 47 Cannon . | . . . Launcher 19 | . . 19 Special . | . . . Kinetic . | . . . Thermal 75 | 10 18 47 Explosive 19 | . . 19 Electromagnetic 18 | 10 8 . Robot Hit Streak 26 | 6 10 26 Robot Miss Streak 4 | 2 4 2 Penetration Max . | . . . Secondary Targets 1 | . 1 . Max Gunslinging Chain 1 | . 1 . Shots Hit Robots 67 | 14 16 37 Core Hits 20 | 2 3 15 Critical Kills . | . . . Critical Parts Destroyed . | . . . Critical Strikes 5 | 1 1 3 Burn 5 | 1 1 3 Melee Attacks . | . . . Impact . | . . . Slashing . | . . . Piercing . | . . . Sneak Attacks . | . . . Combat Hostiles . | . . . Follow-up Attacks . | . . . Damage Inflicted 1255 | 180 215 860 Guns 783 | 180 215 388 Cannons . | . . . Explosions 472 | . . 472 Melee . | . . . Ramming . | . . . Kinetic . | . . . Thermal 601 | 88 125 388 Explosive 472 | . . 472 Electromagnetic 182 | 92 90 . Impact . | . . . Slashing . | . . . Piercing . | . . . Highest Corruption . | . . . Average Corruption . | . . . Corruption Purged . | . . . Corruption Blocked . | . . . Overload Shots . | . . . Overflow Damage . | . . . Projectiles . | . . . Explosions . | . . . Melee . | . . . Knockbacks . | . . . Impact . | . . . Kinetic . | . . . Secondary . | . . . Self-Inflicted Damage 36 | . . 36 Shots 2 | . . 2 Rammed . | . . . Targets Rammed . | . . . Kicked . | . . . Crushed . | . . . Highest Temperature 228 | 120 228 . Average Temperature 65 | 46 78 . Received Heat Transfer 159 | . 54 105 Siege Activations . | . . . Robots Corrupted . | . . . Combat Hostiles . | . . . Parts Fried . | . . . Impact Corruptions . | . . . Robots Melted . | . . . Combat Hostiles . | . . . Parts Melted 6 | . 1 5 Heat Transferred 1856 | 333 420 1103 Parts Sabotaged . | . . . Parts Stolen . | . . . Parts Stripped . | . . . Power Chain Reactions . | . . . Missiles Intercepted . | . . . Alert | -11 -10 -10 ------- Run | Jun Mat Sub Peak Influence 126 | 10 126 . Initial 6 | . 6 . Average 30 | 3 47 . Maximum Alert Level . | . . . Low Security (%) 100 | 100 100 . Level 1 . | . . . Level 2 . | . . . Level 3 . | . . . Level 4 . | . . . Level 5 . | . . . High Security . | . . . Max Security . | . . . Squads Dispatched 1 | . 1 . Investigation 1 | . 1 . Extermination . | . . . Reinforcement . | . . . Assault . | . . . Garrison . | . . . Intercept . | . . . Searches Triggered . | . . . Construction Impeded . | . . . Haulers Reinforced . | . . . Active Scanning Responses . | . . . Cargo Convoy Interrupts . | . . . Stealth | -11 -10 -10 --------- Run | Jun Mat Sub Distress Signals 1 | . 1 . Communications Jammed . | . . . Distress Signals . | . . . Times Spotted 14 | . 6 8 Peak Tracking Total 3 | . 2 3 Tactical Retreats . | . . . Traps | -11 -10 -10 ------- Run | Jun Mat Sub Traps Triggered 1 | . . 1 Indirectly . | . . . Trap Hack Attempts . | . . . Triggered . | . . . Disarmed . | . . . Reprogrammed . | . . . Reused . | . . . Traps Extracted . | . . . Installed . | . . . Triggered 5 | . 1 4 Machines | -11 -10 -10 ---------- Run | Jun Mat Sub Machines Disabled 3 | . 1 2 Max in Single Turn 2 | . 1 2 Machines Repaired . | . . . Machines Sabotaged . | . . . Overloaded Fab Kills . | . . . Hacking | -11 -10 -10 --------- Run | Jun Mat Sub Machines Accessed 4 | . 3 1 Terminals 2 | . 2 . Fabricators . | . . . Repair Stations . | . . . Recycling Units 1 | . 1 . Scanalyzers . | . . . Garrison Access . | . . . Total Hacks 18 | . 9 9 Successful 10 | . 1 9 Failed 8 | . 8 . Catastrophic 2 | . 2 . Database Lockouts . | . . . Manual 6 | . 6 . Terminals 6 | . 6 . Fabricators . | . . . Repair Stations . | . . . Recycling Units 3 | . 3 . Scanalyzers . | . . . Garrison Access . | . . . Terminal Hacks 9 | . . 9 Record 8 | . . 8 Derelict Proto ID Bank 1 | . . 1 Fabricator Hacks . | . . . Repair Station Hacks . | . . . Recycling Unit Hacks 1 | . 1 . Retrieve Components 1 | . 1 . Scanalyzer . | . . . Garrison Access Hacks . | . . . Unauthorized Hacks . | . . . Terminals . | . . . Fabricators . | . . . Repair Stations . | . . . Recycling Units . | . . . Scanalyzers . | . . . Garrison Access . | . . . Data Cores Recovered . | . . . Used . | . . . Hacking Detections 3 | . 3 . Full Trace Events . | . . . Feedback Events . | . . . Feedback Blocked . | . . . Robot Schematics Acquired . | . . . Robots Built . | . . . Authchips . | . . . Time . | . . . Total Robot Build Rating . | . . . Part Schematics Acquired . | . . . Parts Built . | . . . Authchips . | . . . Time . | . . . Total Part Build Rating . | . . . Parts Repaired . | . . . Time . | . . . Parts Recycled . | . . . Recycled Matter . | . . . Retrieved Matter . | . . . Retrieved Components 1 | . 1 . Parts Scanalyzed . | . . . Part Schematics Acquired . | . . . Parts Damaged . | . . . Bothacking | -11 -10 -10 ------------ Run | Jun Mat Sub Used RIF Installer . | . . . Robots Hacked . | . . . Non-combat . | . . . Combat . | . . . Robot Hacks Applied . | . . . Relay Couplers Released . | . . . Fabnet Peak Effective % . | . . . Robots Rewired . | . . . Allies Hacked . | . . . Hacks Repelled . | . . . Allies | -11 -10 -10 -------- Run | Jun Mat Sub Total Allies . | . . . Largest Group . | . . . Highest-Rated Group . | . . . Highest-Rated Ally . | . . . Total Orders . | . . . Ally Attacks . | . . . Total Damage . | . . . Kills . | . . . Allies Corrupted . | . . . Allies Melted . | . . . Intel | -11 -10 -10 ------- Run | Jun Mat Sub Robot Analysis Total . | . . . Derelict Logs Recovered 1 | . . 1 Drone Launches . | . . . Drone Recoveries . | . . . Exploration | -11 -10 -10 ------------- Run | Jun Mat Sub Turns Passed 1795 | 172 269 1354 Spaces Moved 929 | 76 162 691 Core 3 | 3 . . Treads . | . . . Legs 926 | 73 162 691 Wheels . | . . . Hover . | . . . Flight . | . . . Fastest Speed 50 | 50 120 120 Average Speed 166 | 166 133 174 Slowest Speed 190 | 190 190 190 Overloaded Moves . | . . . Propulsion Burnouts . | . . . Robots Hopped . | . . . Cave-ins Triggered . | . . . Exploration Rate (%) 19 | 5 25 28 Regions Visited 2 Branch Regions 1 Pre-discovered Areas . | . . . Known Exits Taken . | . . . Unknown Exits Taken 2 | 1 1 . Scrap Searched 2 | . . 2 Spaces Dug . | . . . Terrain Destroyed 107 | . . 107 Melee . | . . . Projectile 1 | . . 1 AOE 106 | . . 106 Terrain Rammed . | . . . Walls Destroyed . | . . . Machines Disabled . | . . . Actions | -11 -10 -10 --------- Run | Jun Mat Sub Total 1064 | 102 188 774 Wait 46 | . 6 40 Move 927 | 75 161 691 Hop . | . . . Pick Up 20 | 11 5 4 Fast Attach . | . . . Attach 8 | 6 1 1 Detach . | . . . Swap 4 | . 2 2 Drop 3 | . . 3 Fire 56 | 10 13 33 Melee . | . . . Ram . | . . . Kick . | . . . Crush . | . . . Escape Stasis . | . . . Rewire . | . . . Trap . | . . . Miscellaneous . | . . . Route ------- -11/Junkyard -10/Materials -10/Subcaves History --------- Turn | Location | Event 11 | -11/Junkyard | Discovered new exit (range 15) 173 | -11/Junkyard | Entered Materials 314 | -10/Materials | Build established: Mutant 438 | -10/Materials | Discovered new exit (range 5) 442 | -10/Materials | Entered Subcaves 778 | -10/Subcaves | Core integrity fell below 50% 863 | -10/Subcaves | Visited 4L-MR0's lab 939 | -10/Subcaves | Found Powered Cannon 1054 | -10/Subcaves | Learned Materials security intel 1332 | -10/Subcaves | Core integrity fell below 20% 1793 | -10/Subcaves | Ambushed by angry Subdweller bent on revenge 1796 | -10/Subcaves | Destroyed by WS-GKL(R) with Subdweller Laser Last Messages --------------- 01148_ Acquired 39 matter. 01175_ QW-SSD(R): "FREEEEDUMB!" 01177_ Destroyed Scrap Shield. 01180_ BV-I2L(R) destroyed. 01181_ The unstable cave ceiling collapses. 01185_ QW-SSD(R) affixes Scrap Shield Fragment to Scrap Shield. 01186_ QW-SSD(R) destroyed. 01191_ The unstable cave ceiling collapses. 01203_ GJ-JHJ(R) destroyed. 01206_ The unstable cave ceiling collapses. 01216_ Acquired 52 matter. 01220_ Dropped Com. Wheel. 01220_ Acquired Sub. Optics. 01222_ The unstable cave ceiling collapses. 01592_ Acquired 36 matter. 01778_ G2-WBJ(u) tweaks Twisted Machinery. 01782_ G2-WBJ(u) cries out in pain. 01782_ G2-WBJ(u) destroyed. 01793_ WS-GKL(R) angrily emerges from the Twisted Machinery. 01793_ WS-GKL(R): "LEAVESUB!" Map ----- +----------------------------------------------------+ | ?????????????????????????????????????????????? | | ?????????????????????????????????????????????? | | ?????????????????????????????????????????????? | | ?????????????????????????????????????????????? | | ?????????????????????????????????????????????? | | ?????????????????????????????????????????????? | | ?????????????????????????????????????????????? | | ?????????????????????????????????????????????? | | ?????????????????????????????????????????????? | | ?????????????????????????????????????????????? | | ?????????????????????????????????????????????? | | ?????????????????????????????????????????????? | | ?????????????????????????????????????????????? | | ?????????????????????????????????????????????? | | ?????????????????????????????????????????????? | | ?????????????????????"?""#???????????????????? | | ????????????????????#""""#???????????????????? | | ???????????????????##""" ##??????????????????? | | ???????????????##### "" ???????????????????? | | ???????????????# "# R"" #???????????????????? | | ???????????????# """" #???????????????????? | | ???????????????#"""" % #???????????????????? | | ???????????????#" = ##??????????????????? | | ???????????????# """#??????????????????? | | ???????????????### ""#??????????????????? | | ?????????????????## @ ""##??????????????????? | | ??????????????????## ""##???????????????????? | | ??????????????????## ####?????####??????????? | | ??????????????????# # #????# ???????????? | | ??????????????????# #??## ????????????? | | ??????????????????# ## ##?# #????????????? | | ??????????????????# #?# ?????????????? | | ??????????????????## ##?# #?????????????? | | ??????????????##### ## #### #?????????????? | | ??????????????# ##?## ## #???????? ???? | | ??????????????# #### ## #??????? ???? | | ??????????????# ##????? #????? | | ??????????????## #?##? ##????? | | ???????????????## ## # #????? | | ????????????????## ###### ##????? | | ?????????????????####????## #????? | | ??????????????????????????# # #######??? | | ?????????????????????????## ### ???# | | ????????????????????????## ## #??## | | ????????????????????????# ## ## #### | | ????????????????????????# #?# ### ## | | ????????????????????????## #####?# | | ?????????????????????????#### ##### | | ????????????????????????##### | | ???????????????????????## # | +----------------------------------------------------+ Best States ------------- Heat Dissipation 25 Energy Generation 10 Energy Capacity 250 Matter Stores 300 Matter Capacity 300 Sight Range 16 Terrain Scan Density 10 Evasion (%) 55 Item Schematics ----------------- None Robot Schematics ------------------ None Fabricated ------------ Nothing Alien Tech Used ----------------- None Achievements -------------- None Challenges ------------ None Game ------ Seed HybridShockSpear Manual? 0 Play Time 00:14:05 Cumulative 52.1 hours Start 2023.08.12 @ 16:46:10 End 2023.08.12 @ 17:06:49 Sessions 1 Manual Loads 0 Difficulty Rogue Special Mode None Game No. 38 Rogue 2 Adventurer 36 Explorer 0 Win Type - Total 6 Types 1/0/5/0/0/0/0/0/0 Lore% 37 Gallery% 58 Achievement% 51 Wizard Run 0 Options --------- ASCII 0 Keyboard 0 Movement Mouse Keybinds 0 Fullscreen 1 Font 18/SmallcapsGlow Map View 76x50 Tactical HUD 1 Map Filters NONE Filters NONE Steam 1 RUN: 414c195a-5afc-49b4-a69a-76a9b1832f0f